Cogmind - Beta 12 @@@ ROGUE MODE // 2024.02.25 @ 15:09:46 Player: Dosh Result: Self-destructed Performance ------------- Evolutions (2) 1000 Regions Visited (4) 800 Robots Destroyed (0) 0 Value Destroyed (0) 0 Prototype IDs (0) 0 Alien Tech Used (0) 0 Bonus (470) 470 TOTAL SCORE: 2270 Bonus ------- Pacifist 470 Cogmind --------- Core Integrity 8/550 Matter 236/300 Energy 100/100 System Corruption 0% Temperature Cool (0) Movement Core (50) Location -8/Storage Parts ------- > --- POWER (1) -------- (None) > --- PROPULSION (4) --- (None) > --- UTILITY (4) ------ (None) > --- WEAPON (2) ------- (None) > --- INVENTORY (5) ---- Cooling System Small Storage Unit Sensor Array Heavy Mace Axe Peak State ------------ > --- POWER ------------ Ion Engine > --- PROPULSION ------- (None) > --- UTILITY ---------- Advanced Weight Redist. System Hardened Light Armor Plating > --- WEAPON ----------- Axe > --- INVENTORY -------- Cooling System Small Storage Unit Sensor Array Heavy Mace [Rating: 9] Favorites ----------- Power Ion Engine Engine Ion Engine Propulsion Flight Unit Flight Unit Flight Unit Utility Hardened Light Armor Plating Device Advanced Weight Redist. System Protection Hardened Light Armor Plating Weapon Axe Impact Weapon Heavy Mace Slashing Weapon Axe Build | -11 -10 -9 -8 -8 ------- Run | Jun Mat Mat Mat Sto Slots Evolved 4 | . . 2 2 . Power . | . . . . . Propulsion 2 | . . 2 . . Utility 2 | . . . 2 . Weapon . | . . . . . Parts Attached 7 | . 1 . 6 . Power 2 | . . . 2 . Engine 2 | . . . 2 . Core . | . . . . . Reactor . | . . . . . Propulsion 1 | . 1 . . . Treads . | . . . . . Leg . | . . . . . Wheel . | . . . . . Hover . | . . . . . Flight 1 | . 1 . . . Utility 2 | . . . 2 . Device 1 | . . . 1 . Storage . | . . . . . Processor . | . . . . . Hackware . | . . . . . Protection 1 | . . . 1 . Artifact . | . . . . . Weapon 2 | . . . 2 . Energy Gun . | . . . . . Energy Cannon . | . . . . . Ballistic Gun . | . . . . . Ballistic Cannon . | . . . . . Launcher . | . . . . . Special Weapon . | . . . . . Impact Weapon 1 | . . . 1 . Slashing Weapon 1 | . . . 1 . Piercing Weapon . | . . . . . Special Melee Weapon . | . . . . . Unidentified Prototypes . | . . . . . Parts Lost 4 | . . 1 3 . Power 1 | . . . 1 . Propulsion 1 | . . 1 . . Utility 2 | . . . 2 . Weapon . | . . . . . Highest Loss Streak 3 | . . 1 3 . To Critical Strikes . | . . . . . Average Slot Usage (%) 7 | . 2 11 8 . Flight 2 | . 2 11 . . Protection 1 | . . . 2 . Impact Weapon 1 | . . . 1 . Slashing Weapon 2 | . . . 3 . Naked Turns 140 | . 60 2 78 . Heaviest Build 10 | . . . 10 . Greatest Support 12 | 3 4 4 12 . Greatest Overweight (x) 3 | . . . 3 . Average Overweight (x) . | . . . . . Largest Inventory Capacity 5 | 5 5 5 5 . Average Capacity 5 | 5 5 5 5 . Most Carried 5 | 2 3 4 5 . Average Carried 4 | 1 2 3 4 . Final Capacity 5 | 5 5 5 5 5 Final Carried 5 | 2 3 4 5 5 Class Distribution -------------------- 100% | Mutant Dominant Class ---------------- Mutant | -10/Materials Mutant | -9/Materials Mutant | -8/Materials Mutant | -8/Storage Resources | -11 -10 -9 -8 -8 ----------- Run | Jun Mat Mat Mat Sto Matter Collected 141 | 141 . . . . Remotely . | . . . . . Salvage Created . | . . . . . Parts . | . . . . . Haulers Intercepted . | . . . . . Recyclers Shooed . | . . . . . Parts Field Recycled . | . . . . . Retrieved Matter . | . . . . . Parts Self-Destructed . | . . . . . Prevented . | . . . . . Kills | -11 -10 -9 -8 -8 ------- Run | Jun Mat Mat Mat Sto Combat Hostiles Destroyed . | . . . . . Classes Destroyed . | . . . . . Best Kill Streak . | . . . . . Combat Bots Only . | . . . . . Max Kills in Single Turn . | . . . . . Gunslinging . | . . . . . Exploded . | . . . . . Melee . | . . . . . Uniques/NPCs Destroyed . | . . . . . Combat | -11 -10 -9 -8 -8 -------- Run | Jun Mat Mat Mat Sto Damage Taken 1075 | . 170 59 846 . Core 750 | . 170 38 542 . Absorbed by Shields . | . . . . . Core Remaining (%) 74 | 100 32 90 . . Volleys Fired . | . . . . . Largest . | . . . . . Hottest . | . . . . . Shots Fired . | . . . . . Gun . | . . . . . Cannon . | . . . . . Launcher . | . . . . . Special . | . . . . . Kinetic . | . . . . . Thermal . | . . . . . Explosive . | . . . . . Electromagnetic . | . . . . . Robot Hit Streak . | . . . . . Robot Miss Streak . | . . . . . Penetration Max . | . . . . . Secondary Targets . | . . . . . Shots Hit Robots . | . . . . . Core Hits 1 | . . . 1 . Critical Kills . | . . . . . Critical Parts Destroyed . | . . . . . Critical Strikes . | . . . . . Melee Attacks 1 | . . . 1 . Impact . | . . . . . Slashing 1 | . . . 1 . Piercing . | . . . . . Sneak Attacks . | . . . . . Combat Hostiles . | . . . . . Follow-up Attacks . | . . . . . Damage Inflicted 44 | . . . 44 . Guns . | . . . . . Cannons . | . . . . . Explosions . | . . . . . Melee . | . . . . . Ramming 44 | . . . 44 . Kinetic . | . . . . . Thermal . | . . . . . Explosive . | . . . . . Electromagnetic . | . . . . . Impact . | . . . . . Slashing . | . . . . . Piercing . | . . . . . Highest Corruption 1 | . . 1 . . Average Corruption 1 | . . 1 . . Corruption Purged . | . . . . . Corruption Blocked . | . . . . . Overload Shots . | . . . . . Overflow Damage . | . . . . . Projectiles . | . . . . . Explosions . | . . . . . Melee . | . . . . . Knockbacks . | . . . . . Impact . | . . . . . Kinetic . | . . . . . Secondary . | . . . . . Self-Inflicted Damage 20 | . . . 20 . Shots . | . . . . . Rammed 13 | . . . 13 . Targets Rammed 13 | . . . 13 . Kicked . | . . . . . Crushed . | . . . . . Highest Temperature 15 | . . . 15 . Average Temperature 7 | . . . 7 . Received Heat Transfer 384 | . 69 . 315 . Siege Activations . | . . . . . Robots Corrupted . | . . . . . Combat Hostiles . | . . . . . Parts Fried . | . . . . . Impact Corruptions . | . . . . . Robots Melted . | . . . . . Combat Hostiles . | . . . . . Parts Melted . | . . . . . Heat Transferred . | . . . . . Parts Sabotaged . | . . . . . Parts Stolen . | . . . . . Parts Stripped . | . . . . . Power Chain Reactions . | . . . . . Missiles Intercepted . | . . . . . Alert | -11 -10 -9 -8 -8 ------- Run | Jun Mat Mat Mat Sto Peak Influence 300 | . 30 12 300 . Initial 126 | . . 12 . 126 Average 51 | . 20 11 74 . Maximum Alert Level 1 | . . . 1 . Low Security (%) 96 | 100 100 100 94 . Level 1 3 | . . . 5 . Level 2 . | . . . . . Level 3 . | . . . . . Level 4 . | . . . . . Level 5 . | . . . . . High Security . | . . . . . Max Security . | . . . . . Squads Dispatched 2 | . . . 2 . Investigation 1 | . . . 1 . Extermination . | . . . . . Reinforcement 1 | . . . 1 . Assault . | . . . . . Garrison . | . . . . . Intercept . | . . . . . Searches Triggered . | . . . . . Construction Impeded . | . . . . . Haulers Reinforced . | . . . . . Active Scanning Responses . | . . . . . Cargo Convoy Interrupts . | . . . . . Stealth | -11 -10 -9 -8 -8 --------- Run | Jun Mat Mat Mat Sto Distress Signals 2 | . . . 2 . Communications Jammed . | . . . . . Distress Signals . | . . . . . Times Spotted 36 | . 6 3 27 . Peak Tracking Total 22 | . 5 4 22 . Tactical Retreats 4 | . . . 4 . Traps | -11 -10 -9 -8 -8 ------- Run | Jun Mat Mat Mat Sto Traps Triggered 3 | . . 1 2 . Indirectly . | . . . . . Trap Hack Attempts . | . . . . . Triggered . | . . . . . Disarmed . | . . . . . Reprogrammed . | . . . . . Reused . | . . . . . Traps Extracted . | . . . . . Installed . | . . . . . Triggered . | . . . . . Machines | -11 -10 -9 -8 -8 ---------- Run | Jun Mat Mat Mat Sto Machines Disabled . | . . . . . Max in Single Turn . | . . . . . Garrison Access 1 | . . . 1 . Machines Repaired . | . . . . . Machines Sabotaged . | . . . . . Overloaded Fab Kills . | . . . . . Hacking | -11 -10 -9 -8 -8 --------- Run | Jun Mat Mat Mat Sto Machines Accessed 5 | . 2 1 2 . Terminals 3 | . 2 . 1 . Fabricators . | . . . . . Repair Stations . | . . . . . Recycling Units 1 | . . 1 . . Scanalyzers . | . . . . . Garrison Access 1 | . . . 1 . Total Hacks 9 | . 4 2 3 . Successful 4 | . 2 1 1 . Failed 5 | . 2 1 2 . Catastrophic 2 | . 1 . 1 . Database Lockouts . | . . . . . Manual 4 | . 2 . 2 . Terminals 6 | . 4 . 2 . Fabricators . | . . . . . Repair Stations . | . . . . . Recycling Units 2 | . . 2 . . Scanalyzers . | . . . . . Garrison Access 1 | . . . 1 . Terminal Hacks . | . . . . . Fabricator Hacks . | . . . . . Repair Station Hacks . | . . . . . Recycling Unit Hacks 1 | . . 1 . . Retrieve Components 1 | . . 1 . . Scanalyzer . | . . . . . Garrison Access Hacks 1 | . . . 1 . Seal Access 1 | . . . 1 . Unauthorized Hacks 2 | . 2 . . . Terminals 2 | . 2 . . . Assimilate 1 | . 1 . . . Botnet 1 | . 1 . . . Fabricators . | . . . . . Repair Stations . | . . . . . Recycling Units . | . . . . . Scanalyzers . | . . . . . Garrison Access . | . . . . . Data Cores Recovered . | . . . . . Used . | . . . . . Hacking Detections 3 | . 1 1 1 . Full Trace Events 1 | . . . 1 . Feedback Events . | . . . . . Feedback Blocked . | . . . . . Robot Schematics Acquired . | . . . . . Robots Built . | . . . . . Authchips . | . . . . . Time . | . . . . . Total Robot Build Rating . | . . . . . Part Schematics Acquired . | . . . . . Parts Built . | . . . . . Authchips . | . . . . . Time . | . . . . . Total Part Build Rating . | . . . . . Parts Repaired . | . . . . . Time . | . . . . . Parts Recycled . | . . . . . Recycled Matter . | . . . . . Retrieved Matter . | . . . . . Retrieved Components 1 | . . 1 . . Parts Scanalyzed . | . . . . . Part Schematics Acquired . | . . . . . Parts Damaged . | . . . . . Bothacking | -11 -10 -9 -8 -8 ------------ Run | Jun Mat Mat Mat Sto Used RIF Installer . | . . . . . Robots Hacked . | . . . . . Non-combat . | . . . . . Combat . | . . . . . Robot Hacks Applied . | . . . . . Relay Couplers Released . | . . . . . Fabnet Peak Effective % . | . . . . . Robots Rewired . | . . . . . Allies Hacked . | . . . . . Hacks Repelled . | . . . . . Allies | -11 -10 -9 -8 -8 -------- Run | Jun Mat Mat Mat Sto Total Allies 1 | . 1 . . . Largest Group 1 | . 1 . . . Highest-Rated Group 10 | . 10 . . . Highest-Rated Ally 10 | . 10 . . . Total Orders . | . . . . . Ally Attacks . | . . . . . Total Damage . | . . . . . Kills . | . . . . . Allies Corrupted . | . . . . . Allies Melted . | . . . . . Intel | -11 -10 -9 -8 -8 ------- Run | Jun Mat Mat Mat Sto Robot Analysis Total . | . . . . . Derelict Logs Recovered . | . . . . . Drone Launches . | . . . . . Drone Recoveries . | . . . . . Exploration | -11 -10 -9 -8 -8 ------------- Run | Jun Mat Mat Mat Sto Turns Passed 406 | 17 66 68 255 . Spaces Moved 712 | 30 127 166 389 . Core 538 | 30 115 4 389 . Treads . | . . . . . Legs . | . . . . . Wheels . | . . . . . Hover . | . . . . . Flight 174 | . 12 162 . . Fastest Speed 40 | 50 40 40 50 . Average Speed 51 | 50 49 40 56 . Slowest Speed 200 | 50 50 50 200 . Overloaded Moves . | . . . . . Propulsion Burnouts . | . . . . . Robots Hopped 2 | . 1 1 . . Cave-ins Triggered . | . . . . . Exploration Rate (%) 21 | 3 36 20 47 1 Regions Visited 4 Branch Regions 1 Pre-discovered Areas . | . . . . . Known Exits Taken . | . . . . . Unknown Exits Taken 4 | 1 1 1 1 . Scrap Searched . | . . . . . Spaces Dug . | . . . . . Terrain Destroyed . | . . . . . Melee . | . . . . . Projectile . | . . . . . AOE . | . . . . . Terrain Rammed . | . . . . . Walls Destroyed . | . . . . . Machines Disabled . | . . . . . Actions | -11 -10 -9 -8 -8 --------- Run | Jun Mat Mat Mat Sto Total 745 | 31 128 165 421 . Wait 10 | . 1 . 9 . Move 704 | 29 124 163 388 . Hop 2 | . 1 1 . . Pick Up 5 | 2 1 1 1 . Fast Attach 5 | . 1 . 4 . Attach 2 | . . . 2 . Detach 2 | . . . 2 . Swap . | . . . . . Drop 1 | . . . 1 . Fire . | . . . . . Melee 1 | . . . 1 . Ram 13 | . . . 13 . Kick . | . . . . . Crush . | . . . . . Escape Stasis . | . . . . . Rewire . | . . . . . Trap . | . . . . . Miscellaneous . | . . . . . Route ------- -11/Junkyard -10/Materials (discovered 2 exits: *Mat / [*Min]) -9/Materials -8/Materials (discovered 2 exits: [*Fac] / [*Sto]) -8/Storage History --------- Turn | Location | Event 10 | -11/Junkyard | Discovered new exit (range 15) 18 | -11/Junkyard | Entered Materials 54 | -10/Materials | Discovered new exit (range 15) 78 | -10/Materials | Core integrity fell below 50% 83 | -10/Materials | Discovered new exit (range 3) 84 | -10/Materials | Entered another Materials area 84 | -9/Materials | Evolved 2 slots: Propulsion x2 149 | -9/Materials | Discovered new exit (range 3) 152 | -9/Materials | Entered another Materials area 152 | -8/Materials | Evolved 2 slots: Utility x2 322 | -8/Materials | Build established: Mutant 365 | -8/Materials | Core integrity fell below 50% 372 | -8/Materials | Lost 3 parts (1p2u) 387 | -8/Materials | Core integrity fell below 20% 399 | -8/Materials | Discovered new exit (range 15) 407 | -8/Materials | Discovered new exit (range 15) 407 | -8/Materials | Entered Storage 407 | -8/Storage | Self-destructed Last Messages --------------- 00276_ Acquired Adv. Weight Redist. System. 00281_ Acquired Hrd. Light Armor Plating. 00301_ Critical hit (Burn: +37). 00309_ Adv. Weight Redist. System destroyed. 00312_ Critical hit (Burn: +37). 00319_ Ion Engine destroyed. 00323_ Critical hit (Burn: +37). 00341_ Hrd. Light Armor Plating destroyed. 00353_ K-01 Serf collects debris. 00364_ Critical hit (Burn: +37). 00380_ Slammed into G-47 Trooper. 00381_ Slammed into A-02 Transporter. 00386_ Destabilizing: Core damaged (-5). 00388_ Slammed into A-02 Transporter. 00399_ EXIT=FOUND 00400_ Triggered Explosive Trap. 00400_ An explosion rips through the floor. 00407_ EXIT=FOUND LOCATION=UNKNOWN GOAL=ESCAPE Map ----- +----------------------------------------------------+ | ?????????????????????????????? | | ?????????????????????????????? | | ?????????????????????????????? | | ?????????????????????????????? | | ?????????????????????????????? | | ?????????????????????????????? | | ?????????????????????????????? | | ?????????????????????????????? | | ?????????????????????????????? | | ?????????????????????????????? | | ?????????????????????????????? | | ?????????????????????????????? | | ?????????????????????????????? | | ?????????????????????????????? | | ?????????????????????????????? | | ?????????????????????????????? | | ???##+###????????????????????? | | ???# ?????????????????????? | | ???# ?????????????????????? | | ???# ?????????????????????? | | ???# #?????????????????????? | | ???# #?????????????????????? | | ???# #?????????????????????? | | ???# #?????????????????????? | | ???# #?????????????????????? | | ???# @ #?????????????????????? | | ???# #?????????????????????? | | ???#####?????????????????????? | | ?????????????????????????????? | | ?????????????????????????????? | | ?????????????????????????????? | | ?????????????????????????????? | | ?????????????????????????????? | | ?????????????????????????????? | | ?????????????????????????????? | | ?????????????????????????????? | | ?????????????????????????????? | | ?????????????????????????????? | | ?????????????????????????????? | | ?????????????????????????????? | | ?????????????????????????????? | | ?????????????????????????????? | | | | | | | | | | | | | | | | | +----------------------------------------------------+ Best States ------------- Heat Dissipation 31 Energy Generation 10 Energy Capacity 250 Matter Stores 241 Matter Capacity 300 Sight Range 16 Terrain Scan Density 10 Additional Mass Support 9 Armor Coverage 150 Evasion (%) 62 Item Schematics ----------------- None Robot Schematics ------------------ None Fabricated ------------ Nothing Alien Tech Used ----------------- None Achievements -------------- None Challenges ------------ None Game ------ Seed UltimateTerrabombVibroblade Manual? 0 Play Time 00:05:17 Cumulative 236.8 hours Start 2024.02.25 @ 15:04:33 End 2024.02.25 @ 15:09:46 Sessions 1 Manual Loads 0 Difficulty Rogue Special Mode None Game No. 175 Rogue 175 Adventurer 0 Explorer 0 Win Type - Total 8 Types 5/0/1/1/0/0/0/1/0 Lore% 69 Gallery% 78 Achievement% 67 Wizard Run 0 Options --------- ASCII 0 Keyboard 1 Movement Numpad Keybinds 0 Fullscreen 2 Font 18/SmallcapsGlow Map View 76x50 Tactical HUD 1 Map Filters NONE Filters NONE Steam 1 RUN: 082b1836-94e4-4a78-92b1-bcfbd4e1ea3c